Cogmind - Beta 13 @@@ ROGUE MODE // 2024.04.17 @ 15:29:15 Player: Nicky Result: Self-destructed Performance ------------- Evolutions (2) 1000 Regions Visited (3) 600 Robots Destroyed (36) 180 Value Destroyed (961) 961 Prototype IDs (1) 20 Alien Tech Used (0) 0 Bonus (0) 0 TOTAL SCORE: 2761 Bonus ------- None Cogmind --------- Core Integrity 345/550 Matter 222/300 Energy 150/150 System Corruption 0% Temperature Cool (0) Movement Hovering (410) Ox6 Location -8/Materials Parts ------- > --- POWER (1) -------- Micro Nuclear Core > --- PROPULSION (4) --- Improved Airjet > --- UTILITY (4) ------ High-capacity Storage Unit Melee Analysis Suite Hardlight Generator Hacking Suite > --- WEAPON (2) ------- Rocket Launcher Katana > --- INVENTORY (20) --- Micro Nuclear Core Aluminum Leg Aluminum Leg Aluminum Leg Aluminum Leg Carbon-fiber Leg Heat Sink Improved Heat Sink Improved Heat Sink Large Storage Unit Weight Redist. System Sensor Array Improved Targeting Computer Improved Targeting Computer Beam Rifle Heavy Laser Heavy Laser Heavy Laser Heavy Assault Rifle Heavy Flail Peak State ------------ > --- POWER ------------ Micro Nuclear Core > --- PROPULSION ------- Wheel Improved Airjet Improved Airjet > --- UTILITY ---------- High-capacity Storage Unit Melee Analysis Suite Hardlight Generator Hacking Suite > --- WEAPON ----------- Heavy Assault Rifle Katana > --- INVENTORY -------- Micro Nuclear Core Aluminum Leg Aluminum Leg Aluminum Leg Aluminum Leg Carbon-fiber Leg Heat Sink Improved Heat Sink Improved Heat Sink Large Storage Unit Weight Redist. System Sensor Array Improved Targeting Computer Improved Targeting Computer Beam Rifle Heavy Laser Heavy Laser Rocket Launcher Heavy Flail [Rating: 34] Favorites ----------- Power Light Nuclear Core Engine Ion Engine Power Core Light Nuclear Core Propulsion Wheel Treads Light Treads Leg Aluminum Leg Wheel Wheel Hover Unit Improved Airjet Utility Hacking Suite Device Weight Redist. System Storage High-capacity Storage Unit Processor Melee Analysis Suite Hackware Hacking Suite Protection Medium Armor Plating Weapon Heavy Assault Rifle Energy Gun EM Pulse Gun Energy Cannon Beam Cannon Ballistic Gun Heavy Assault Rifle Launcher Rocket Launcher Slashing Weapon Katana Build | -11 -10 -9 -8 ------- Run | Yrd Mat Mat Mat Slots Evolved 4 | . . 2 2 Power . | . . . . Propulsion 2 | . . 1 1 Utility 2 | . . 1 1 Weapon . | . . . . Parts Attached 83 | 11 29 25 18 Power 6 | 1 3 . 2 Engine 3 | 1 2 . . Core 3 | . 1 . 2 Reactor . | . . . . Propulsion 45 | 6 17 11 11 Treads 3 | 1 2 . . Leg 11 | . 4 3 4 Wheel 29 | 5 11 8 5 Hover 2 | . . . 2 Flight . | . . . . Utility 13 | 1 5 5 2 Device 5 | . 1 3 1 Storage 4 | 1 3 . . Processor 1 | . . . 1 Hackware 1 | . 1 . . Protection 2 | . . 2 . Artifact . | . . . . Weapon 19 | 3 4 9 3 Energy Gun 4 | 2 2 . . Energy Cannon 4 | . . 3 1 Ballistic Gun 8 | 1 2 5 . Ballistic Cannon . | . . . . Launcher 2 | . . 1 1 Special Weapon . | . . . . Impact Weapon . | . . . . Slashing Weapon 1 | . . . 1 Piercing Weapon . | . . . . Special Melee Weapon . | . . . . Unidentified Prototypes 1 | . . . 1 Parts Lost 7 | . 2 1 4 Power 1 | . . 1 . Propulsion 3 | . . . 3 Utility . | . . . . Weapon 3 | . 2 . 1 Highest Loss Streak 1 | . 1 1 1 To Critical Strikes . | . . . . Average Slot Usage (%) 93 | . 92 99 87 Engine 3 | . 12 . . Core 6 | . 1 11 7 Treads 1 | . 3 . . Leg 2 | . 3 . 3 Wheel 27 | . 20 32 27 Device 5 | . 7 4 4 Storage 11 | . 14 11 9 Processor 1 | . . . 4 Hackware 7 | . 2 11 9 Protection 2 | . . 6 2 Energy Gun 3 | . 11 . . Energy Cannon 4 | . . 11 3 Ballistic Gun 10 | . 12 10 10 Slashing Weapon 1 | . . . 4 Naked Turns . | . . . . Heaviest Build 58 | 12 47 58 58 Greatest Support 46 | 26 46 42 40 Greatest Overweight (x) 5 | 3 2 1 5 Average Overweight (x) . | . . 1 1 Largest Inventory Capacity 20 | 8 20 20 20 Average Capacity 16 | 7 12 20 20 Most Carried 20 | 8 18 20 20 Average Carried 15 | 5 10 19 19 Final Capacity 20 | 8 20 20 20 Final Carried 20 | 8 18 20 20 Class Distribution -------------------- 58% | Scavenger-Mutant 41% | Mutant Dominant Class ---------------- Mutant | -10/Materials Scavenger-Mutant | -9/Materials Scavenger-Mutant | -8/Materials Resources | -11 -10 -9 -8 ----------- Run | Yrd Mat Mat Mat Matter Collected 1136 | 314 293 289 240 Remotely . | . . . . Salvage Created 1340 | 91 666 343 240 Parts 83 | 4 38 31 10 Haulers Intercepted 2 | . 1 1 . Recyclers Shooed 1 | . 1 . . Parts Field Recycled . | . . . . Retrieved Matter . | . . . . Parts Self-Destructed . | . . . . Prevented . | . . . . Kills | -11 -10 -9 -8 ------- Run | Yrd Mat Mat Mat Combat Hostiles Destroyed 27 | . 13 8 6 Melee 3 | . . . 3 Guns 17 | . 13 3 1 Cannons 3 | . . 2 1 AOE 4 | . . 3 1 Classes Destroyed 10 | 2 4 3 1 Worker 1 | 1 . . . Builder 2 | . 1 1 . Hauler 2 | . 1 1 . Recycler 2 | 1 . . 1 Operator 1 | . 1 . . Watcher 1 | . . 1 . Swarmer 6 | . . 3 3 Grunt 17 | . 13 2 2 Duelist 1 | . . . 1 Sentry 3 | . . 3 . Best Kill Streak 7 | 1 7 5 3 Combat Bots Only 7 | . 7 4 3 Max Kills in Single Turn 4 | 1 2 4 2 Gunslinging 1 | . 1 . . Exploded 3 | . . 3 1 Melee 1 | . . . 1 Uniques/NPCs Destroyed . | . . . . Combat | -11 -10 -9 -8 -------- Run | Yrd Mat Mat Mat Hostile Shots Fired 142 | . 61 42 39 Missed 43 | . 18 12 13 Damage Taken 1441 | . 530 401 510 Core 375 | . 125 45 205 Absorbed by Shields 76 | . . . 76 Core Remaining (%) 79 | 100 50 88 . Volleys Fired 90 | 18 35 25 12 Largest 2 | 1 2 2 2 Hottest 120 | 20 80 120 83 Shots Fired 151 | 18 62 50 21 Gun 126 | 18 62 30 16 Cannon 21 | . . 19 2 Launcher 4 | . . 1 3 Special . | . . . . Kinetic 94 | 18 30 30 16 Thermal 21 | . . 19 2 Explosive 4 | . . 1 3 Electromagnetic 32 | . 32 . . Robot Hit Streak 28 | 7 9 26 28 Robot Miss Streak 4 | 2 2 4 1 Penetration Max . | . . . . Secondary Targets 1 | . 1 . . Max Gunslinging Chain 1 | . 1 . . Shots Hit Robots 115 | 14 45 38 18 Core Hits 63 | 5 30 18 10 Critical Kills . | . . . . Critical Parts Destroyed . | . . . . Critical Strikes . | . . . . Melee Attacks 7 | . . . 7 Impact . | . . . . Slashing 7 | . . . 7 Piercing . | . . . . Sneak Attacks . | . . . . Combat Hostiles . | . . . . Follow-up Attacks . | . . . . Damage Inflicted 2060 | 124 614 709 613 Guns 1070 | 124 488 318 140 Cannons 261 | . . 225 36 Explosions 597 | . 126 166 305 Melee 132 | . . . 132 Ramming . | . . . . Kinetic 736 | 124 154 318 140 Thermal 628 | . 126 225 277 Explosive 230 | . . 166 64 Electromagnetic 334 | . 334 . . Impact . | . . . . Slashing 132 | . . . 132 Piercing . | . . . . Highest Corruption . | . . . . Average Corruption . | . . . . Corruption Purged . | . . . . Corruption Blocked . | . . . . Overload Shots . | . . . . Overflow Damage 61 | . . 3 58 Projectiles . | . . . . Explosions 61 | . . 3 58 Melee . | . . . . Knockbacks . | . . . . Impact . | . . . . Kinetic . | . . . . Secondary . | . . . . Self-Inflicted Damage 160 | . 30 16 114 Shots 3 | . 1 1 1 Rammed . | . . . . Targets Rammed . | . . . . Kicked . | . . . . Crushed . | . . . . Highest Temperature 255 | . 255 198 14 Average Temperature 78 | . 98 56 6 Received Heat Transfer 588 | . 273 201 114 Siege Activations . | . . . . Robots Corrupted . | . . . . Combat Hostiles . | . . . . Parts Fried . | . . . . Impact Corruptions . | . . . . Robots Melted . | . . . . Combat Hostiles . | . . . . Parts Melted 2 | . . 2 . Heat Transferred 855 | . 150 481 224 Parts Sabotaged . | . . . . Parts Stolen . | . . . . Parts Stripped . | . . . . Power Chain Reactions 2 | . 2 . . Alert | -11 -10 -9 -8 ------- Run | Yrd Mat Mat Mat Peak Influence 348 | 10 348 202 241 Initial 27 | . 6 22 27 Average 113 | 2 133 89 146 Maximum Alert Level 1 | . 1 1 1 Low Security (%) 82 | 100 69 98 74 Level 1 17 | . 30 1 25 Level 2 . | . . . . Level 3 . | . . . . Level 4 . | . . . . Level 5 . | . . . . High Security . | . . . . Max Security . | . . . . Squads Dispatched 9 | . 4 2 3 Investigation 3 | . 1 2 . Extermination . | . . . . Reinforcement 6 | . 3 . 3 Assault . | . . . . Garrison . | . . . . Intercept . | . . . . Searches Triggered . | . . . . Construction Impeded . | . . . . Haulers Reinforced . | . . . . Active Scanning Responses . | . . . . Cargo Convoy Interrupts . | . . . . Stealth | -11 -10 -9 -8 --------- Run | Yrd Mat Mat Mat Distress Signals 1 | . . 1 . Communications Jammed . | . . . . Distress Signals . | . . . . Times Spotted 54 | . 20 17 17 Peak Tracking Total 8 | . 8 5 7 Tactical Retreats 3 | . 2 . 1 Traps | -11 -10 -9 -8 ------- Run | Yrd Mat Mat Mat Traps Triggered 2 | . 1 . 1 Indirectly . | . . . . Trap Hack Attempts . | . . . . Triggered . | . . . . Disarmed . | . . . . Reprogrammed . | . . . . Reused . | . . . . Traps Extracted . | . . . . Installed . | . . . . Triggered . | . . . . Machines | -11 -10 -9 -8 ---------- Run | Yrd Mat Mat Mat Machines Disabled 3 | . . . 3 Max in Single Turn 3 | . . . 3 Machines Repaired . | . . . . Machines Dismantled . | . . . . Machines Sabotaged . | . . . . Overloaded Fab Kills . | . . . . Hacking | -11 -10 -9 -8 --------- Run | Yrd Mat Mat Mat Machines Accessed 14 | . 5 7 2 Terminals 14 | . 5 7 2 Fabricators . | . . . . Repair Stations . | . . . . Recycling Units . | . . . . Scanalyzers . | . . . . Garrison Access . | . . . . Total Hacks 48 | . 11 26 11 Successful 27 | . 6 17 4 Failed 21 | . 5 9 7 Catastrophic 4 | . 2 2 . Database Lockouts . | . . . . Manual 45 | . 13 25 7 Terminals 48 | . 11 26 11 Fabricators . | . . . . Repair Stations . | . . . . Recycling Units . | . . . . Scanalyzers . | . . . . Garrison Access . | . . . . Terminal Hacks 16 | . 4 11 1 Level Access Points 2 | . 1 1 . Branch Access Points 1 | . . 1 . Terminal Index 1 | . . 1 . Alert Level 4 | . 1 2 1 Unreport Threat 2 | . 1 1 . Security Status 1 | . . 1 . Patrol Status 1 | . 1 . . Transport Status 1 | . . 1 . Assault Status 1 | . . 1 . Garrison Status 1 | . . 1 . Recall Investigation 1 | . . 1 . Fabricator Hacks . | . . . . Repair Station Hacks . | . . . . Recycling Unit Hacks . | . . . . Scanalyzer . | . . . . Garrison Access Hacks . | . . . . Unauthorized Hacks 10 | . 2 6 2 Terminals 10 | . 2 6 2 Botnet 10 | . 2 6 2 Fabricators . | . . . . Repair Stations . | . . . . Recycling Units . | . . . . Scanalyzers . | . . . . Garrison Access . | . . . . Data Cores Recovered 1 | . 1 . . Used . | . . . . Hacking Detections 14 | . 6 6 2 Full Trace Events 7 | . 1 5 1 Feedback Events . | . . . . Feedback Blocked . | . . . . Robot Schematics Acquired . | . . . . Robots Built . | . . . . Authchips . | . . . . Time . | . . . . Total Robot Build Rating . | . . . . Part Schematics Acquired . | . . . . Parts Built . | . . . . Authchips . | . . . . Time . | . . . . Total Part Build Rating . | . . . . Parts Repaired . | . . . . Time . | . . . . Parts Recycled . | . . . . Recycled Matter . | . . . . Retrieved Matter . | . . . . Retrieved Components . | . . . . Parts Scanalyzed . | . . . . Part Schematics Acquired . | . . . . Parts Damaged . | . . . . Bothacking | -11 -10 -9 -8 ------------ Run | Yrd Mat Mat Mat Used RIF Installer . | . . . . Robots Hacked . | . . . . Non-combat . | . . . . Combat . | . . . . Robot Hacks Applied . | . . . . Relay Couplers Released . | . . . . Fabnet Peak Effective % . | . . . . Robots Rewired . | . . . . Allies Hacked . | . . . . Hacks Repelled . | . . . . Allies | -11 -10 -9 -8 -------- Run | Yrd Mat Mat Mat Total Allies . | . . . . Largest Group . | . . . . Highest-Rated Group . | . . . . Highest-Rated Ally . | . . . . Total Orders . | . . . . Ally Attacks . | . . . . Total Damage . | . . . . Kills . | . . . . Allies Corrupted . | . . . . Allies Melted . | . . . . Intel | -11 -10 -9 -8 ------- Run | Yrd Mat Mat Mat Robot Analysis Total . | . . . . Derelict Logs Recovered . | . . . . Drone Launches . | . . . . Drone Recoveries . | . . . . Exploration | -11 -10 -9 -8 ------------- Run | Yrd Mat Mat Mat Turns Passed 1515 | 127 437 457 494 Spaces Moved 1044 | 74 284 312 374 Core 11 | 11 . . . Treads 8 | . 8 . . Legs 18 | . 18 . . Wheels 1007 | 63 258 312 374 Hover . | . . . . Flight . | . . . . Fastest Speed 50 | 50 90 95 95 Average Speed 100 | 94 96 103 101 Slowest Speed 200 | 200 190 108 155 Overloaded Moves . | . . . . Propulsion Burnouts . | . . . . Robots Hopped . | . . . . Cave-ins Triggered . | . . . . Exploration Rate (%) 31 | 4 59 32 29 Regions Visited 3 Branch Regions . Pre-discovered Areas . | . . . . Known Exits Taken 2 | . 1 1 . Unknown Exits Taken 1 | 1 . . . Scrap Searched . | . . . . Spaces Dug . | . . . . Terrain Destroyed 78 | . 8 8 62 Melee . | . . . . Projectile . | . . . . AOE 78 | . 8 8 62 Terrain Rammed . | . . . . Walls Destroyed . | . . . . Machines Disabled . | . . . . Actions | -11 -10 -9 -8 --------- Run | Yrd Mat Mat Mat Total 1349 | 114 383 393 459 Wait 56 | 1 14 18 23 Move 1041 | 73 283 311 374 Hop . | . . . . Pick Up 37 | 7 13 5 12 Fast Attach 16 | 8 2 1 5 Attach 8 | . 2 2 4 Detach 3 | 2 . 1 . Swap 59 | 3 25 22 9 Drop 32 | 2 9 8 13 Fire 90 | 18 35 25 12 Melee 7 | . . . 7 Ram . | . . . . Kick . | . . . . Crush . | . . . . Escape Stasis . | . . . . Rewire . | . . . . Trap . | . . . . Miscellaneous . | . . . . Route ------- -11/Scrapyard -10/Materials (discovered 4 exits: *Mat x3 / [*Min]) -9/Materials (discovered 7 exits: *Mat x3 / Min x2 / Sto x2) -8/Materials History --------- Turn | Location | Event 33 | -11/Scrapyard | Discovered new exit (range 16) 128 | -11/Scrapyard | Entered Materials 301 | -10/Materials | Discovered new exit (range 16) 336 | -10/Materials | Destroyed 7 combat bots 480 | -10/Materials | Identified exit to Materials 565 | -10/Materials | Entered another Materials area 565 | -9/Materials | Evolved 2 slots: Propulsion x1, Utility x1 769 | -9/Materials | Discovered new exit (range 15) 820 | -9/Materials | Identified exit to Materials 820 | -9/Materials | Identified exit to Mines 820 | -9/Materials | Identified exit to Storage 858 | -9/Materials | Build established: Scavenger-Mutant 1022 | -9/Materials | Entered another Materials area 1022 | -8/Materials | Evolved 2 slots: Propulsion x1, Utility x1 1516 | -8/Materials | Self-destructed Last Messages --------------- 01468_ Dropped Lgt. Nuclear Core. 01470_ Acquired Mic. Nuclear Core. 01471_ Dropped Aluminum Leg. 01475_ Acquired Carbon-fiber Leg. 01477_ ALERT: Suspicious intruders detected, dispatching Specialist reinforcements to area. 01494_ Dropped Assault Cannon. 01495_ Dropped Beam Cannon. 01496_ Acquired Hvy. Laser. 01510_ Penetrated by Slug. 01510_ Imp. Airjet blasted off. 01510_ Knocked back. 01510_ Electrolysis Chamber disabled. 01511_ Wheel destroyed. 01512_ H-61 Shepherd calls for reinforcements. 01512_ ALERT: Hostile activity reported, dispatching reinforcements to area. 01512_ Knocked back. 01513_ Electrolysis Chamber disabled. 01514_ Knocked back. Map ----- +----------------------------------------------------+ | ???????????????????????????????????????????? | | ???????????????????????????????????????????? | | ???????????????????????????????????????????? | | ???????????????????????????????????????????? | | ???????????????????????????????????????????? | | ???????????????????????????????????????????? | | ???????????????????????????????????????????? | | ???????????????????????????????????????????? | | ???????????????????????????????????????????? | | ???????????????????????????????????????????? | | ????????????????? t????????????????????????? | | ???????????????# ??? ???????????????????# | | ???????????????# ???###########?????# | | ???????????????# "T" ???# #?????# | | ?????????? ????# # #?????# | | ??????????? ???# # #?????# | | ???????????? ??# # ! #?????# | | ???????????? ### x """ """ #?????# | | ????????????? """ x# """ """ #?????? | | ?????????????? """ # """ """ ####### | | ?????????????? "" # + | | ??????????????? ################# | | ????????????????#]]! #???????????????? | | ????????????????#]] """ #???????????????? | | ????????????????#]! """ #???????????????? | | ????????????????#% @ "" ################# | | ????????????????# [ % | | ????????????????# | | ????????????????# = | | ??????????? /g ##### ##### | | ?????????# ##???# * = #???? | | ?????????##### ]]] #????#=*= ||#???? | | ?????????????# !! ==#????#** =||#???? | | ????????????? H ! [==#????########???? | | ???????????? ######???????????????? | | ???????????## #????????????????????? | | ????????????## ##??????????????????### | | ?????????????!! ##???????????????????# | | ????????????!!! ?????????????????????# | | ????????????!!! Y?????????????????????# | | ???????????? ?????????????????????# | | ??????????????? ?????????????????????# | | ????????????????? ?????????????????????### | | ???????????????????????????????????????????? | | | | | | | | | | | | | +----------------------------------------------------+ Best States ------------- Heat Dissipation 38 Energy Generation 15 Energy Capacity 250 Matter Stores 300 Matter Capacity 300 Sight Range 16 Terrain Scan Density 10 Additional Mass Support 6 Armor Coverage 225 Evasion (%) 50 Melee Accuracy 5 Recoil Reduction 2 Offensive Hacking 10 Item Schematics ----------------- None Robot Schematics ------------------ None Fabricated ------------ Nothing Alien Tech Used ----------------- None Achievements -------------- GoHome() Quantum Hacking True Hacker root@ Challenges ------------ None Game ------ Seed SurgeRecoilCleaver Manual? 0 Play Time 00:48:58 Cumulative 6.8 hours Start 2024.04.17 @ 13:28:59 End 2024.04.17 @ 15:29:15 Sessions 1 Manual Loads 0 Difficulty Rogue Special Mode None Game No. 5 Rogue 5 Adventurer 0 Explorer 0 Win Type - Total 0 Types 0/0/0/0/0/0/0/0/0 Lore% 2 Gallery% 15 Achievement% 14 Wizard Run 0 Options --------- Layout 0 ASCII 0 Keyboard 0 Movement Arrows Keybinds 0 Fullscreen 2 Font 18/SmallcapsGlow Map View 76x50 Zoom Use 0% Tactical HUD 1 Map Filters NONE Filters NONE Steam 1 RUN: 0c2cf325-7860-4cef-8a53-ae22b5f3942d